fUSD/lending_fUSD_20260422
["ID","MTS","AMOUNT","RATE_DAILY","PERIOD"]
[420967517,1776821432833,-801.92539945,0.0001,2]
[420967519,1776821432844,-800.57109369,0.0001,2]
[420967521,1776821432854,-209.03579245,0.0001,2]
[420967523,1776821432865,-159.22,0.0001,2]
[420967525,1776821432874,-150.0,0.00010003,2]
[420967527,1776821432884,-150.0,0.00010017,2]
[420967529,1776821432894,-150.0,0.00010032,2]
[420967531,1776821432905,-150.0,0.00010047,2]
[420967533,1776821432914,-1600.0,0.00010053,2]
[420967535,1776821432924,-150.0,0.00010061,2]
[420967537,1776821432935,-150.0,0.00010076,2]
[420967539,1776821432945,-150.0,0.00010091,2]
[420967541,1776821432955,-150.0,0.00010105,2]
[420967543,1776821432966,-160.0,0.00010119,2]
[420967545,1776821432977,-247.236662,0.00010119,2]
[420967547,1776821432988,-334.473325,0.00010119,2]
[420967549,1776821432998,-160.0,0.00010119,2]
[420967551,1776821433008,-2204.730965,0.00010119,2]
[420967553,1776821433018,-4249.461931,0.00010119,2]
[420967555,1776821433029,-160.0,0.00010119,2]
[420967558,1776821433039,-479.728802,0.00010119,2]
[420967560,1776821433049,-799.457604,0.00010119,2]
[420967561,1776821433060,-150.0,0.0001012,2]
[420967563,1776821433070,-150.0,0.00010135,2]
[420967565,1776821433081,-160.0,0.00010148,2]
[420967566,1776821433090,-987.144359,0.00010148,2]
[420967567,1776821433100,-1814.288718,0.00010148,2]
[420967568,1776821433110,-150.0,0.00010149,2]
[420967569,1776821433119,-150.0,0.00010152,2]
[420967570,1776821433129,-150.0,0.00010164,2]
[420967571,1776821433139,-150.0,0.00010179,2]
[420967572,1776821433149,-150.0,0.00010193,2]
[420967573,1776821433159,-191.20921413,0.00010201,2]
[420967574,1776821433170,-150.0,0.00010208,2]
[420967575,1776821433180,-150.0,0.00010223,2]
[420967576,1776821433191,-150.0,0.00010238,2]
[420967577,1776821433201,-150.0,0.00010252,2]
[420967578,1776821433211,-160.0,0.00010259,2]
[420967579,1776821433222,-782.030609,0.00010259,2]
[420967580,1776821433233,-1404.061219,0.00010259,2]
[420967581,1776821433242,-150.0,0.00010267,2]
[420967582,1776821433253,-150.0,0.00010282,2]
[420967583,1776821433263,-150.0,0.00010296,2]
[420967584,1776821433273,-150.0,0.00010311,2]
[420967585,1776821433283,-2207.26,0.00010313,2]
[420967586,1776821433293,-174.7,0.00010325,2]
[420967587,1776821433303,-174.7,0.00010325,2]
[420967588,1776821433313,-174.7,0.00010325,2]
[420967589,1776821433322,-174.7,0.00010325,2]
[420967590,1776821433332,-174.7,0.00010325,2]
[420967591,1776821433342,-174.7,0.00010325,2]
[420967592,1776821433352,-500.0,0.00010325,2]
[420967593,1776821433363,-500.0,0.00010325,2]
[420967594,1776821433373,-500.0,0.00010325,2]
[420967595,1776821433385,-500.0,0.00010325,2]
[420967596,1776821433396,-500.0,0.00010325,2]
[420967597,1776821433407,-500.0,0.00010325,2]
[420967598,1776821433418,-496.26545734,0.00010325,2]
[420967599,1776821433427,-500.0,0.00010325,2]
[420967600,1776821433438,-362.93410476,0.00010325,2]
[420967601,1776821433448,-150.0,0.00010325,2]
[420967602,1776821433458,-500.0,0.00010325,2]
[420967603,1776821433468,-150.0,0.00010325,2]
[420967604,1776821433477,-354.95063802,0.00010325,2]
[420967605,1776821433487,-156.37567058,0.00010325,2]
[420967606,1776821433497,-150.0,0.00010325,2]
[420967607,1776821433506,-150.0,0.00010326,2]
[420967608,1776821433516,-150.0,0.0001034,2]
[420967609,1776821433526,-2092.0,0.00010354,2]
[420967610,1776821433535,-540.0,0.00010355,2]
[420967611,1776821433545,-150.0,0.00010355,2]
[420967612,1776821433555,-150.0,0.00010364,2]
[420967613,1776821433564,-150.0,0.0001037,2]
[420967614,1776821433575,-150.0,0.00010384,2]
[420967615,1776821433585,-150.0,0.00010399,2]
[420967616,1776821433595,-150.0,0.00010414,2]
[420967617,1776821433606,-150.0,0.00010428,2]
[420967618,1776821433616,-150.0,0.00010443,2]
[420967619,1776821433626,-150.0,0.00010458,2]
[420967620,1776821433636,-150.0,0.00010473,2]
[420967621,1776821433646,-5000.0,0.00010476,2]
[420967622,1776821433658,-150.0,0.00010487,2]
[420967623,1776821433667,-1713.34325779,0.000105,2]
[420967624,1776821433677,-711.03198568,0.000105,2]
[420967625,1776821433691,-1788.96801432,0.000105,2]
[420967626,1776821433701,-1726.61204254,0.000105,2]
[420967627,1776821433713,-3273.38795746,0.000105,2]
[420967628,1776821433727,-150.0,0.00010502,2]
[420967629,1776821433736,-151.0,0.00010505,2]
[420967630,1776821433746,-151.0,0.00010505,2]
[420967631,1776821433755,-151.0,0.00010505,2]
[420967632,1776821433765,-151.0,0.00010505,2]
[420967633,1776821433775,-151.0,0.00010505,2]
[420967634,1776821433785,-151.0,0.00010505,2]
[420967635,1776821433796,-151.0,0.00010505,2]
[420967636,1776821433807,-151.0,0.00010505,2]
[420967637,1776821433818,-151.0,0.00010505,2]
[420967638,1776821433828,-151.0,0.00010505,2]
[420967639,1776821433838,-151.0,0.00010505,2]
[420967640,1776821433848,-25618.64219705,0.00010512,2]
[420967641,1776821433858,-150.0,0.00010517,2]
[420967642,1776821433868,-165.15,0.00010529,2]
[420967643,1776821433878,-150.0,0.00010531,2]
[420967644,1776821433888,-150.0,0.00010546,2]
[420967645,1776821433898,-478.85,0.00010547,2]
[420967646,1776821433908,-150.0,0.00010561,2]
[420967647,1776821433917,-500.0,0.00010573,2]
[420967648,1776821433927,-368.95770627,0.00010573,2]
[420967649,1776821433936,-500.0,0.00010573,2]
[420967650,1776821433945,-500.0,0.00010573,2]
[420967651,1776821433955,-500.0,0.00010573,2]
[420967652,1776821433964,-150.0,0.00010575,2]
[420967653,1776821433973,-150.0,0.00010575,2]
[420967654,1776821433984,-293.470776,0.00010575,2]
[420967655,1776821433995,-150.00000001,0.00010575,2]
[420967656,1776821434005,-229.94576835,0.0001059,2]
[420967657,1776821434016,-200.0,0.0001059,2]
[420967658,1776821434026,-1115.04,0.00010599,2]
[420967659,1776821434036,-5596.76483845,0.000106,2]
[420967664,1776821440567,-153.97593917,0.0001059,2]
[420967665,1776821440577,-975.15148215,0.000106,2]
[420967670,1776821443075,-800.13598669,0.000106,2]
[420967671,1776821443414,-314.97615658,0.000106,2]
[420967673,1776821443568,-78532.38285036,0.000106,2]
[420967678,1776821446048,-160.0,0.00010119,2]
[420967679,1776821446058,-1067.715911,0.00010119,2]
[420967680,1776821446069,-1975.431822,0.00010119,2]
[420967681,1776821446078,-5339.242267,0.000106,2]
[420967682,1776821446091,-1064.08890374,0.000106,2]
[420967683,1776821446102,-9144.5895854,0.000106,2]
[420967684,1776821446178,-3949.06120022,0.000106,2]
[420967685,1776821446190,-28099.22773341,0.000106,2]
[420967686,1776821446440,-6174.46658889,0.000106,2]
[420967688,1776821488812,150.0,0.00016289,30]
[420967701,1776822632087,-467.29685263,8.458e-05,2]
[420967702,1776822632100,-32.70314737,8.458e-05,2]
[420967703,1776822632109,-300.0,9.303e-05,2]
[420967704,1776822632119,-300.0,9.304e-05,2]
[420967705,1776822632128,-3467.55063717,9.304e-05,2]
[420967706,1776822632138,-250.0,9.304e-05,2]
[420967707,1776822632147,-300.0,9.304e-05,2]
[420967708,1776822632156,-193.64259832,9.304e-05,2]
[420967709,1776822632166,-250.0,9.304e-05,2]
[420967710,1776822632176,-3000.0,9.304e-05,2]
[420967711,1776822632185,-513.82128,9.304e-05,2]
[420967712,1776822632194,-2000.0,9.608e-05,2]
[420967713,1776822632204,-1600.0,9.662e-05,2]
[420967714,1776822632213,-1914.23,9.674e-05,2]
[420967715,1776822632223,-167.47,9.733e-05,2]
[420967716,1776822632232,-153.43,9.882e-05,2]
[420967717,1776822632241,-2504.5587,9.919e-05,2]
[420967718,1776822632251,-513.82128,9.939e-05,2]
[420967719,1776822632260,-160.0,9.939e-05,2]
[420967720,1776822632270,-250.0,9.955e-05,2]
[420967721,1776822632279,-150.0,0.00010012,2]
[420967722,1776822632288,-151.0,0.00010013,2]
[420967723,1776822632298,-151.0,0.00010013,2]
[420967724,1776822632307,-151.0,0.00010013,2]
[420967725,1776822632316,-151.0,0.00010013,2]
[420967726,1776822632325,-151.0,0.00010013,2]
[420967727,1776822632334,-151.0,0.00010013,2]
[420967728,1776822632344,-151.0,0.00010013,2]
[420967729,1776822632354,-151.0,0.00010013,2]
[420967730,1776822632363,-265.06702816,0.00010013,2]
[420967731,1776822632372,-254.70846608,0.00010013,2]
[420967732,1776822632382,-151.0,0.00010013,2]
[420967740,1776822632903,-151.0,0.00010013,2]
[420967741,1776822633022,-151.0,0.00010013,2]
[420967742,1776822633032,-151.0,0.00010013,2]
[420967743,1776822633041,-151.0,0.00010013,2]
[420967744,1776822633051,-151.0,0.00010013,2]
[420967745,1776822633060,-151.0,0.00010013,2]
[420967746,1776822633070,-151.0,0.00010013,2]
[420967747,1776822633079,-151.0,0.00010013,2]
[420967748,1776822633088,-159.40551329,0.00010013,2]
[420967749,1776822633098,-638.27,0.00010062,2]
[420967750,1776822633108,-1944.0,0.00010385,2]
[420967751,1776822633117,-397.15767619,0.00010397,2]
[420967752,1776822633126,-3058.25386045,0.00010399,2]
[420967753,1776822633136,-299.05404939,0.00010405,2]
[420967754,1776822633145,-200.0,0.00010405,2]
[420967755,1776822633154,-500.49947838,0.00010473,2]
[420967756,1776822633164,-500.0,0.00010473,2]
[420967757,1776822633174,-500.0,0.00010473,2]
[420967758,1776822633183,-501.64017088,0.00010473,2]
[420967759,1776822633193,-473.20908145,0.00010473,2]
[420967760,1776822633202,-892337.69844071,0.00010499,2]
[420967761,1776822633215,-12579.10392233,0.00010499,2]
[420967762,1776822633244,-6945.14459819,0.00010499,2]
[420967763,1776822633256,-1288.30785659,0.00010499,2]
[420967764,1776822633267,-278.52586619,0.00010499,2]
[420967765,1776822633283,-316.11449079,0.00010499,2]
[420967766,1776822633294,-1075.43,0.00010499,2]
[420967771,1776822638330,-500.0,0.00010473,2]
[420967772,1776822638341,-513.82128,0.00010473,2]
[420967773,1776822638351,-153.97593918,0.00010489,2]
[420967774,1776822638362,-210.9296731,0.00010498,2]
[420967775,1776822638373,-643.87274578,0.00010498,2]
[420967776,1776822638383,-500.0,0.00010498,2]
[420967777,1776822638394,-240.06911158,0.00010498,2]
[420967778,1776822638404,-500.0,0.00010498,2]
[420967779,1776822638414,-280.9545222,0.00010498,2]
[420967780,1776822638425,-500.0,0.00010498,2]
[420967781,1776822638435,-500.0,0.00010498,2]
[420967782,1776822638445,-500.0,0.00010498,2]
[420967783,1776822638455,-500.0,0.00010498,2]
[420967784,1776822638464,-500.45985701,0.00010498,2]
[420967785,1776822638474,-500.0,0.00010498,2]
[420967786,1776822638484,-500.0,0.00010498,2]
[420967787,1776822638494,-500.0,0.00010498,2]
[420967788,1776822638505,-500.0,0.00010498,2]
[420967789,1776822638515,-458.28370954,0.00010498,2]
[420967790,1776822638525,-152.30338658,0.00010498,2]
[420967791,1776822638535,-500.0,0.00010498,2]
[420967792,1776822638544,-325.83017448,0.00010498,2]
[420967793,1776822638554,-218.21171349,0.00010498,2]
[420967794,1776822638564,-500.0,0.00010498,2]
[420967795,1776822638574,-500.0,0.00010498,2]
[420967796,1776822638584,-500.0,0.00010498,2]
[420967797,1776822638593,-500.0,0.00010498,2]
[420967798,1776822638604,-500.0,0.00010498,2]
[420967799,1776822638614,-500.0,0.00010498,2]
[420967800,1776822638625,-500.0,0.00010498,2]
[420967801,1776822638635,-500.0,0.00010498,2]
[420967802,1776822638646,-500.0,0.00010498,2]
[420967803,1776822638656,-500.0,0.00010498,2]
[420967804,1776822638666,-500.0,0.00010498,2]
[420967805,1776822638676,-500.0,0.00010498,2]
[420967806,1776822638686,-500.0,0.00010498,2]
[420967807,1776822638705,-500.0,0.00010498,2]
[420967808,1776822638716,-500.0,0.00010498,2]
[420967809,1776822638727,-500.0,0.00010498,2]
[420967810,1776822638737,-500.0,0.00010498,2]
[420967811,1776822638747,-188.08342206,0.00010498,2]
[420968004,1776822640731,-311.91657794,0.00010498,2]
[420968006,1776822640741,-583.64274813,0.00010498,2]
[420968008,1776822640750,-500.0,0.00010498,2]
[420968010,1776822640759,-500.0,0.00010498,2]
[420968012,1776822640768,-500.0,0.00010498,2]
[420968014,1776822640778,-500.0,0.00010498,2]
[420968016,1776822640787,-500.0,0.00010498,2]
[420968018,1776822640796,-500.0,0.00010498,2]
[420968020,1776822640806,-500.0,0.00010498,2]
[420968022,1776822640815,-500.0,0.00010498,2]
[420968024,1776822640824,-500.0,0.00010498,2]
[420968026,1776822640833,-500.0,0.00010498,2]
[420968028,1776822640843,-500.0,0.00010498,2]
[420968030,1776822640851,-500.0,0.00010498,2]
[420968032,1776822640860,-500.0,0.00010498,2]
[420968034,1776822640869,-500.0,0.00010498,2]
[420968036,1776822640878,-4917.95853194,0.00010499,2]
[420968046,1776822640952,-333.19132186,0.00010499,2]
[420968048,1776822640964,-17344.45971582,0.00010499,2]
[420968076,1776822641209,-6669.98517552,0.00010499,2]
[420968078,1776822641220,-6102.3454475,0.00010499,2]
[420968137,1776822643347,-2078.75970756,0.00010499,2]
[420968138,1776822643403,-3009.55810904,0.00010499,2]
[420968139,1776822643414,-619.0,0.00010499,2]
[420968149,1776822646194,-3074.569328,0.00010499,2]
[420968150,1776822646206,-9559.21788676,0.00010499,2]
[420968151,1776822646217,-2785.20767715,0.00010499,2]
[420968152,1776822646247,-784.81807617,0.00010499,2]
[420968153,1776822646303,-58891.05037478,0.00010499,2]
[420968154,1776822646358,-3016.57165071,0.00010499,2]
[420968155,1776822646622,-11008.44244286,0.00010499,2]
[420968156,1776822646633,-7662.68229055,0.00010499,2]
[420968157,1776822646645,-2657.55019176,0.00010499,2]
[420968158,1776822646657,-462.45719894,0.00010499,2]
[420968159,1776822646668,-256.62616799,0.00010499,2]
[420968160,1776822646679,-817.70460354,0.00010499,2]
[420968171,1776822672760,150.0,0.00016393,30]
[420968172,1776822772858,150.0,0.00016464,30]
[420968229,1776822870402,150.0,0.0001578,30]
[420968230,1776823059036,226.43,0.00014671,30]
[420968231,1776823059380,452.86,0.00015566,30]
[420968232,1776823059718,679.3,0.00016462,30]
[420968233,1776823148417,217.8,0.00013466,30]
[420968234,1776823148757,435.6,0.00014288,30]
[420968235,1776823149536,653.4,0.00015109,30]
[420968236,1776823149669,871.2,0.00015931,30]
[420968238,1776823245163,190.08,0.00014248,30]
[420968239,1776823245515,380.16,0.00015118,30]
[420968240,1776823245898,570.24,0.00015988,30]
[420968242,1776823325471,175.56,0.00014234,30]
[420968243,1776823325812,351.13,0.00015103,30]
[420968244,1776823326176,526.69,0.00015972,30]
[420968245,1776823411687,162.16,0.00013764,30]
[420968246,1776823412031,324.31,0.00014604,30]
[420968247,1776823412382,486.47,0.00015444,30]
[420968248,1776823412738,648.63,0.00016284,30]
[420968249,1776823475843,243.41,0.000162,120]
[420968250,1776823524985,150.0,0.00014519,30]
[420968251,1776823525332,283.04,0.00015405,30]
[420968252,1776823525674,424.56,0.00016291,30]
[420968253,1776823613165,150.0,0.00013434,30]
[420968254,1776823613502,261.21,0.00014254,30]
[420968255,1776823613850,391.81,0.00015074,30]
[420968256,1776823614626,522.42,0.00015894,30]
[420968258,1776823666026,219.07,0.000162,120]
[420968259,1776823691707,150.0,0.00012236,30]
[420968260,1776823692078,227.47,0.00012983,30]
[420968261,1776823692473,341.2,0.0001373,30]
[420968262,1776823692817,454.94,0.00014477,30]
[420968263,1776823693166,568.67,0.00015223,30]
[420968264,1776823695168,682.41,0.0001597,30]
[420968265,1776823775444,150.0,0.00013043,30]
[420968266,1776823776065,165.75,0.00013839,30]
[420968267,1776823776401,248.63,0.00014635,30]
[420968268,1776823776748,331.5,0.00015431,30]
[420968269,1776823778429,414.38,0.00016227,30]
[420968274,1776823832400,-940.11642928,9e-05,3]
[420968275,1776823832413,-291.22112855,9e-05,3]
[420968276,1776823832453,-1868.66244217,9e-05,3]
[420968277,1776823832463,-196.97503652,9.161e-05,2]
[420968278,1776823832473,-1200.0,9.322e-05,2]
[420968279,1776823832483,-300.0,9.322e-05,2]
[420968280,1776823832493,-501.18466309,9.323e-05,2]
[420968281,1776823832502,-167.99696296,9.323e-05,2]
[420968282,1776823832512,-500.0,9.323e-05,2]
[420968283,1776823832522,-500.0,9.323e-05,2]
[420968284,1776823832531,-500.93491423,9.323e-05,2]
[420968285,1776823832541,-500.80374759,9.323e-05,2]
[420968286,1776823832551,-557.76766162,9.323e-05,2]
[420968287,1776823832560,-150.0,9.348e-05,2]
[420968288,1776823832570,-500.0,9.349e-05,2]
[420968289,1776823832580,-500.0,9.349e-05,2]
[420968290,1776823832590,-213.63457919,9.349e-05,2]
[420968291,1776823832601,-244.79607563,9.349e-05,2]
[420968292,1776823832611,-521.40122566,9.349e-05,2]
[420968293,1776823832622,-266.93628421,9.349e-05,2]
[420968294,1776823832637,-500.0,9.349e-05,2]
[420968295,1776823832647,-500.0,9.349e-05,2]
[420968296,1776823832658,-500.0,9.349e-05,2]
[420968297,1776823832668,-500.0,9.349e-05,2]
[420968299,1776823832678,-500.0,9.349e-05,2]
[420968300,1776823832688,-500.0,9.349e-05,2]
[420968301,1776823832698,-500.0,9.349e-05,2]
[420968302,1776823832708,-500.0,9.349e-05,2]
[420968303,1776823832718,-500.0,9.349e-05,2]
[420968304,1776823832728,-500.0,9.349e-05,2]
[420968306,1776823832739,-500.0,9.349e-05,2]
[420968308,1776823832749,-346.19919477,9.349e-05,2]
[420968309,1776823832763,-153.80080523,9.349e-05,2]
[420968310,1776823832774,-423.89042195,9.349e-05,2]
[420968311,1776823832785,-247.13877282,9.349e-05,2]
[420968315,1776823832812,-252.86122718,9.349e-05,2]
[420968318,1776823832824,-101.03327282,9.349e-05,2]
[420968320,1776823832838,-398.96672718,9.349e-05,2]
[420968322,1776823832849,-500.0,9.349e-05,2]
[420968325,1776823832863,-500.0,9.349e-05,2]
[420968326,1776823832874,-500.0,9.349e-05,2]
[420968327,1776823832884,-500.0,9.349e-05,2]
[420968328,1776823832894,-500.0,9.349e-05,2]
[420968329,1776823832904,-500.0,9.349e-05,2]
[420968330,1776823832914,-500.0,9.349e-05,2]
[420968331,1776823832924,-500.0,9.349e-05,2]
[420968332,1776823832934,-350.0,9.349e-05,2]
[420968333,1776823832944,-500.0,9.349e-05,2]
[420968334,1776823832954,-500.0,9.349e-05,2]
[420968335,1776823832964,-500.0,9.349e-05,2]
[420968336,1776823832975,-500.0,9.349e-05,2]
[420968337,1776823832985,-500.0,9.349e-05,2]
[420968338,1776823832995,-500.0,9.349e-05,2]
[420968339,1776823833005,-500.0,9.349e-05,2]
[420968340,1776823833015,-500.0,9.349e-05,2]
[420968341,1776823833025,-500.0,9.349e-05,2]
[420968342,1776823833038,-500.0,9.349e-05,2]
[420968343,1776823833049,-500.0,9.349e-05,2]
[420968344,1776823833059,-500.0,9.349e-05,2]
[420968345,1776823833071,-500.0,9.349e-05,2]
[420968346,1776823833081,-500.0,9.349e-05,2]
[420968347,1776823833091,-500.0,9.349e-05,2]
[420968348,1776823833102,-500.0,9.349e-05,2]
[420968349,1776823833113,-500.0,9.349e-05,2]
[420968350,1776823833123,-171.35725294,9.349e-05,2]
[420968351,1776823833134,-500.0,9.349e-05,2]
[420968352,1776823833144,-152.02909671,9.349e-05,2]
[420968353,1776823833154,-114323.8052429,9.35e-05,2]
[420968354,1776823833170,-28972.54373558,9.35e-05,2]
[420968355,1776823833182,-5533.0,9.35e-05,2]
[420968356,1776823833200,-348.50366075,9.35e-05,2]
[420968361,1776823838591,-27905.77482242,9.35e-05,2]
[420968362,1776823838603,-862.40791882,9.35e-05,2]
[420968363,1776823839674,-654.6,9.35e-05,2]
[420968364,1776823839686,-13800.76076004,9.35e-05,2]
[420968365,1776823839728,-3216.5170958,9.35e-05,2]
[420968366,1776823839740,-812.50323552,9.35e-05,2]
[420968367,1776823839784,-341.50517263,9.35e-05,2]
[420968368,1776823839795,-103470.85222092,9.35e-05,2]
[420968370,1776823840838,-534.0,9.35e-05,2]
[420968371,1776823840850,-1284.43909389,9.35e-05,2]
[420968372,1776823840997,-414.78281653,9.35e-05,2]
[420968373,1776823841051,-1658.00289802,9.35e-05,2]
[420968391,1776823843537,-89336.52762915,9.35e-05,2]
[420968392,1776823843592,-76259.99999999,9.35e-05,2]
[420968393,1776823843807,-20863.59924765,9.35e-05,2]
[420968470,1776823846757,-10505.99243266,9.35e-05,2]
[420968504,1776823855955,197.16,0.000162,120]
[420968505,1776823864670,150.0,0.00016134,30]
[420968509,1776824019888,150.0,0.00015698,30]
[420968510,1776824045138,177.45,0.000162,120]
[420968511,1776824095782,150.0,0.00015686,30]
[420968514,1776824235181,159.7,0.000162,120]
[420968516,1776824249784,170.28,7.366e-05,2]
[420968517,1776824424804,150.0,0.000162,120]
[420968519,1776824525341,659.61649731,7.644e-05,2]
[420968523,1776824615061,150.0,0.000162,120]
[420968525,1776824805326,150.0,0.000162,120]
[420968528,1776824993463,150.0,0.000162,120]
[420968534,1776825031711,-1200.0,9.148e-05,2]
[420968535,1776825031721,-150.0,9.148e-05,2]
[420968536,1776825031730,-21213.26918874,9.149e-05,2]
[420968537,1776825031741,-2318.96831106,9.149e-05,2]
[420968571,1776825031751,-400.0,9.149e-05,2]
[420968577,1776825032238,-642.29822088,9.149e-05,2]
[420968580,1776825032260,-565.91325,9.149e-05,2]
[420968582,1776825032272,-25362.0576058,9.149e-05,2]
[420968585,1776825032283,-8408.46727034,9.149e-05,2]
[420968589,1776825032316,-665.72995843,9.149e-05,2]
[420968590,1776825032327,-575.75,9.149e-05,2]
[420968591,1776825032353,-297.87541165,9.149e-05,2]
[420968592,1776825032368,-2182.37961044,9.149e-05,2]
[420968593,1776825032379,-874.59964105,9.149e-05,2]
[420968609,1776825037800,-769.09,9.149e-05,2]
[420968610,1776825037813,-1256.40417357,9.149e-05,2]
[420968611,1776825038030,-2742.85378632,9.149e-05,2]
[420968612,1776825038147,-1139.21132138,9.149e-05,2]
[420968613,1776825038206,-31524.74727275,9.149e-05,2]
[420968678,1776825045535,-1329.28482927,9.149e-05,2]
[420968682,1776825045597,-3708.47136272,9.149e-05,2]
[420968683,1776825045609,-2283.55768749,9.149e-05,2]
[420968689,1776825045723,-2114.34448536,9.149e-05,2]
[420968691,1776825045735,-949.9428036,9.149e-05,2]
[420968698,1776825045791,-16768.59550915,9.149e-05,2]
[420968700,1776825045801,-2500.0,9.15e-05,2]
[420968702,1776825045810,-823.692,9.15e-05,2]
[420968703,1776825045820,-153.80142993,9.15e-05,2]
[420968704,1776825045830,-500.0,9.223e-05,2]
[420968705,1776825045839,-503.34395917,9.223e-05,2]
[420968706,1776825045848,-500.0,9.223e-05,2]
[420968707,1776825045857,-500.0,9.223e-05,2]
[420968708,1776825045867,-500.0,9.223e-05,2]
[420968709,1776825045875,-500.0,9.223e-05,2]
[420968710,1776825045885,-246.89805452,9.223e-05,2]
[420968711,1776825045895,-161.54922211,9.223e-05,2]
[420968712,1776825045904,-381.71623093,9.223e-05,2]
[420968713,1776825045913,-9519.18,9.233e-05,2]
[420968714,1776825045923,-500.0,9.233e-05,2]
[420968715,1776825045932,-1078.36,9.233e-05,2]
[420968716,1776825045942,-164.21,9.235e-05,2]
[420968717,1776825045952,-500.0,9.249e-05,2]
[420968719,1776825045962,-386.85539895,9.249e-05,2]
[420968720,1776825045971,-500.0,9.249e-05,2]
[420968721,1776825045980,-322.40497182,9.249e-05,2]
[420968723,1776825045989,-321.40122566,9.249e-05,2]
[420968725,1776825045998,-500.0,9.249e-05,2]
[420968726,1776825046007,-500.0,9.249e-05,2]
[420968727,1776825046015,-500.0,9.249e-05,2]
[420968728,1776825046024,-500.0,9.249e-05,2]
[420968729,1776825046034,-500.0,9.249e-05,2]
[420968730,1776825046043,-500.0,9.249e-05,2]
[420968731,1776825046052,-500.0,9.249e-05,2]
[420968732,1776825046062,-500.0,9.249e-05,2]
[420968733,1776825046072,-500.0,9.249e-05,2]
[420968734,1776825046081,-500.0,9.249e-05,2]
[420968735,1776825046091,-500.0,9.249e-05,2]
[420968736,1776825046099,-500.0,9.249e-05,2]
[420968737,1776825046109,-500.0,9.249e-05,2]
[420968738,1776825046118,-153.2318418,9.249e-05,2]
[420968739,1776825046127,-500.0,9.249e-05,2]
[420968740,1776825046136,-500.0,9.249e-05,2]
[420968741,1776825046146,-500.0,9.249e-05,2]
[420968742,1776825046155,-500.0,9.249e-05,2]
[420968743,1776825046165,-500.0,9.249e-05,2]
[420968744,1776825046174,-500.0,9.249e-05,2]
[420968745,1776825046183,-500.0,9.249e-05,2]
[420968746,1776825046192,-500.0,9.249e-05,2]
[420968747,1776825046202,-500.0,9.249e-05,2]
[420968748,1776825046211,-500.0,9.249e-05,2]
[420968749,1776825046221,-500.0,9.249e-05,2]
[420968750,1776825046230,-500.0,9.249e-05,2]
[420968751,1776825046239,-500.0,9.249e-05,2]
[420968752,1776825046247,-500.0,9.249e-05,2]
[420968753,1776825046257,-500.0,9.249e-05,2]
[420968754,1776825046266,-500.0,9.249e-05,2]
[420968755,1776825046275,-500.0,9.249e-05,2]
[420968756,1776825046284,-500.0,9.249e-05,2]
[420968757,1776825046293,-500.0,9.249e-05,2]
[420968758,1776825046303,-500.0,9.249e-05,2]
[420968759,1776825046312,-500.0,9.249e-05,2]
[420968760,1776825046321,-500.0,9.249e-05,2]
[420968761,1776825046330,-500.0,9.249e-05,2]
[420968763,1776825046339,-500.0,9.249e-05,2]
[420968764,1776825046348,-500.0,9.249e-05,2]
[420968765,1776825046357,-500.0,9.249e-05,2]
[420968766,1776825046366,-500.0,9.249e-05,2]
[420968767,1776825046376,-500.0,9.249e-05,2]
[420968768,1776825046385,-500.0,9.249e-05,2]
[420968770,1776825046394,-500.0,9.249e-05,2]
[420968771,1776825046403,-500.0,9.249e-05,2]